bitfinex/quotes_SOLUSD_20260102
["timestamp","ask_amount","ask_price","bid_price","bid_amount"]
[1767331327614,0.66367024,126.97,126.94,0.65833916]
[1767331328595,3.88383168,126.95,126.91,0.65833916]
[1767331328798,3.88383168,126.93,126.9,0.65833916]
[1767331329215,3.85383168,126.93,126.9,0.65833916]
[1767331330914,0.63367024,126.93,126.9,0.65833916]
[1767331334225,3.22016144,126.93,126.89,0.2]
[1767331334398,0.66367024,126.9,126.89,0.2]
[1767331334601,0.66367024,126.89,126.87,0.2]
[1767331334805,3.88383168,126.88,126.87,0.2]
[1767331335329,0.66367024,126.87,126.83,22.26433217]
[1767331335622,0.66367024,126.87,126.84,0.65833916]
[1767331336134,3.88383168,126.87,126.84,0.65833916]
[1767331336309,0.66367024,126.91,126.85,0.65833916]
[1767331336508,3.22016144,126.89,126.85,0.65833916]
[1767331337328,3.22016144,126.88,126.85,0.65833916]
[1767331341507,3.22016144,126.87,126.85,0.65833916]
[1767331341927,3.22016144,126.87,126.84,0.65833916]
[1767331341928,3.22016144,126.86,126.84,0.65833916]
[1767331342104,3.88383168,126.85,126.82,0.2]
[1767331342309,3.22016144,126.86,126.83,7.88455074]
[1767331342726,3.22016144,126.86,126.84,0.65833916]
[1767331343726,3.22016144,126.87,126.84,0.65833916]
[1767331344028,3.22016144,126.87,126.84,8.54228583]
[1767331344228,0.72310475,126.88,126.84,7.88394667]
[1767331344527,3.22016144,126.87,126.85,0.68238008]
[1767331344709,3.94326619,126.88,126.85,0.68238008]
[1767331344915,3.22016144,126.89,126.85,0.68238008]
[1767331345316,0.72310475,126.9,126.85,7.88282619]
[1767331345512,3.22016144,126.89,126.86,0.71842141]
[1767331346932,3.94326619,126.9,126.86,0.71842141]
[1767331348342,3.94326619,126.9,126.86,8.60109613]
[1767331348942,3.22016144,126.89,126.85,7.88309352]
[1767331349149,3.90014257,126.87,126.83,23.00273757]
[1767331349451,3.90014257,126.86,126.83,0.71842141]
[1767331350045,3.22016144,126.87,126.83,0.71842141]
[1767331350347,3.90014257,126.87,126.84,0.71842141]
[1767331353929,3.22016144,126.88,126.84,0.71842141]
[1767331354132,19.70055161,126.9,126.84,0.71842141]
[1767331354133,3.90014257,126.9,126.85,0.71842141]
[1767331354937,3.90014257,126.9,126.86,0.71842141]
[1767331355141,0.67998113,126.89,126.86,0.71842141]
[1767331355343,3.90014257,126.89,126.86,0.71842141]
[1767331355539,0.67998113,126.86,126.82,0.91842141]
[1767331355744,3.90014257,126.86,126.83,0.71842141]
[1767331356552,0.67998113,126.86,126.83,0.71842141]
[1767331356850,3.22016144,126.85,126.83,0.71842141]
[1767331357022,3.90014257,126.86,126.83,0.71842141]
[1767331358641,2.74538789,126.86,126.83,0.71842141]
[1767331359239,0.67998113,126.86,126.83,0.71842141]
[1767331359442,2.74538789,126.86,126.83,0.71842141]
[1767331361824,0.67998113,126.86,126.83,0.71842141]
[1767331362740,2.74538789,126.86,126.83,0.71842141]
[1767331365040,2.06540676,126.86,126.82,0.2]
[1767331365342,0.67998113,126.85,126.82,0.91842141]
[1767331365545,2.74538789,126.85,126.82,0.91842141]
[1767331366033,0.67998113,126.84,126.82,0.2]
[1767331366427,0.67998113,126.84,126.82,0.91842141]
[1767331366628,2.74538789,126.85,126.82,0.91842141]
[1767331367842,2.22567507,126.84,126.82,0.2]
[1767331368032,2.74538789,126.85,126.82,0.91842141]
[1767331368235,2.74538789,126.84,126.82,0.2]
[1767331368449,0.67998113,126.84,126.82,0.2]
[1767331369046,0.67998113,126.85,126.82,0.2]
[1767331369243,0.67998113,126.85,126.82,0.91842141]
[1767331370150,0.67998113,126.85,126.82,8.80359649]
[1767331371150,0.67998113,126.85,126.82,0.91842141]
[1767331371446,0.67998113,126.84,126.82,0.2]
[1767331373048,2.74538789,126.85,126.82,0.2]
[1767331373248,2.06540676,126.86,126.83,0.71842141]
[1767331373428,0.67998113,126.85,126.83,0.71842141]
[1767331375362,2.06540676,126.86,126.83,0.71842141]
[1767331375652,2.06540676,126.88,126.84,0.71806083]
[1767331375854,0.7243202,126.87,126.84,0.71806083]
[1767331376649,0.7243202,126.84,126.82,0.2]
[1767331378254,0.7243202,126.85,126.82,0.91806083]
[1767331378450,0.7243202,126.85,126.82,0.2]
[1767331380354,0.7243202,126.87,126.83,0.71806083]
[1767331382353,0.7243202,126.87,126.84,0.71806083]
[1767331384156,0.7243202,126.87,126.84,8.60191866]
[1767331384362,0.7243202,126.89,126.85,0.71806083]
[1767331385163,0.7243202,126.89,126.85,2.06540676]
[1767331385340,0.7243202,126.89,126.86,0.71806083]
[1767331385748,0.7243202,126.9,126.86,0.71806083]
[1767331386163,0.7243202,126.9,126.86,8.60060772]
[1767331386542,0.7243202,126.9,126.87,0.71806083]
[1767331386738,2.06540676,126.92,126.87,0.68889091]
[1767331386939,0.7243202,126.92,126.87,2.06540676]
[1767331388165,0.7243202,126.92,126.86,27.58931025]
[1767331388347,0.7243202,126.92,126.86,22.28254689]
[1767331388348,0.7243202,126.9,126.86,22.28254689]
[1767331388657,0.7243202,126.9,126.86,23.00060772]
[1767331388861,0.7243202,126.9,126.87,0.71806083]
[1767331395048,0.7243202,126.9,126.86,7.88254689]
[1767331395243,0.7243202,126.9,126.87,0.71806083]
[1767331397151,0.7243202,126.89,126.87,0.71806083]
[1767331402764,0.7243202,126.9,126.87,0.71806083]
[1767331410770,0.7243202,126.9,126.86,7.88254689]
[1767331410968,0.70856866,126.89,126.86,8.56017587]
[1767331414171,0.70856866,126.89,126.85,0.67762898]
[1767331414362,0.70856866,126.88,126.85,0.67762898]
[1767331416682,2.06540676,126.88,126.85,0.67762898]
[1767331416976,0.70856866,126.87,126.85,0.67762898]
[1767331419192,0.70856866,126.87,126.84,7.88384921]
[1767331419491,0.70856866,126.87,126.84,8.56147819]
[1767331419686,0.70856866,126.87,126.84,0.67762898]
[1767331419860,3.22608963,126.87,126.84,0.67762898]
[1767331420060,0.70856866,126.86,126.84,0.67762898]
[1767331421395,3.93465829,126.87,126.84,0.67762898]
[1767331421882,0.70856866,126.87,126.84,0.67762898]
[1767331422181,0.70856866,126.86,126.84,0.67762898]
[1767331426282,3.22608963,126.85,126.82,0.2]
[1767331426473,0.70856866,126.84,126.82,0.2]
[1767331426679,3.93465829,126.84,126.82,0.2]
[1767331426879,0.70856866,126.83,126.82,0.2]
[1767331428376,3.22608963,126.85,126.82,0.2]
[1767331428874,3.22608963,126.85,126.82,0.87762898]
[1767331429087,3.22608963,126.85,126.82,0.2]
[1767331429284,7.8836737,126.85,126.82,0.2]
[1767331429468,11.10976333,126.85,126.82,0.2]
[1767331430164,3.22608963,126.85,126.82,0.2]
[1767331430368,0.70856866,126.86,126.83,0.67762898]
[1767331434689,0.67696449,126.88,126.84,0.67633702]
[1767331434990,3.90305412,126.88,126.84,0.67633702]
[1767331435293,0.67696449,126.88,126.84,0.67633702]
[1767331436671,0.67696449,126.88,126.85,0.67633702]
[1767331437294,0.67696449,126.89,126.85,0.67633702]
[1767331438593,104.49140308,126.9,126.85,0.67633702]
[1767331438798,0.67696449,126.89,126.86,0.67633702]
[1767331439501,93.38508706,126.9,126.86,0.67633702]
[1767331439701,94.06205155,126.9,126.86,0.67633702]
[1767331440300,15.07696449,126.92,126.88,0.67633702]
[1767331440480,0.67696449,126.91,126.88,0.67633702]
[1767331445603,0.67696449,126.91,126.87,0.67633702]
[1767331449005,0.67696449,126.9,126.87,0.67633702]
[1767331449906,0.67696449,126.9,126.86,0.67633702]
[1767331450795,0.67696449,126.89,126.86,0.67633702]
[1767331456909,26.18255747,126.92,126.87,0.67633702]
[1767331457107,0.67696449,126.91,126.87,0.67633702]
[1767331461911,8.55665002,126.91,126.87,0.67633702]
[1767331462109,0.67696449,126.9,126.87,0.67633702]
[1767331470124,8.57678607,126.91,126.87,0.67633702]
[1767331470417,7.87968553,126.91,126.87,0.67633702]
[1767331470622,0.69710054,126.9,126.87,0.67633702]
[1767331486644,0.69710054,126.89,126.86,0.70357626]
[1767331489929,0.69710054,126.88,126.86,0.70357626]
[1767331498543,10.63085932,126.91,126.86,0.70357626]
[1767331498733,9.94338191,126.91,126.86,0.70357626]
[1767331498929,0.68747741,126.9,126.86,0.70357626]
[1767331499257,0.68747741,126.91,126.87,0.70075752]
[1767331500752,0.68747741,126.91,126.87,0.20075752]
[1767331501949,2.75095181,126.91,126.87,0.20075752]
[1767331502155,0.68747741,126.9,126.87,0.20075752]
[1767331517379,2.75095181,126.9,126.87,0.20075752]
[1767331518569,2.0634744,126.9,126.85,7.88332676]
[1767331518751,0.68747741,126.88,126.83,61.2]
[1767331518958,0.68747741,126.87,126.84,0.70075752]
[1767331519470,0.68747741,126.87,126.84,7.88391157]
[1767331519672,0.68747741,126.87,126.85,0.70075752]
[1767331520067,2.75095181,126.88,126.85,0.70075752]
[1767331522869,0.68747741,126.87,126.85,0.70075752]
[1767331523386,0.68747741,126.87,126.84,8.58466909]
[1767331524591,0.66441224,126.86,126.84,0.70075752]
[1767331525385,0.66441224,126.86,126.82,8.74413173]
[1767331525618,0.66441224,126.84,126.82,0.2]
[1767331531100,0.66441224,126.83,126.82,0.2]
[1767331532114,0.66441224,126.83,126.8,22.94540165]
[1767331537393,0.66441224,126.83,126.8,8.54540165]
[1767331538000,0.66441224,126.86,126.81,0.65919616]
[1767331538315,0.66441224,126.84,126.81,0.65919616]
[1767331540315,2.72788664,126.85,126.81,0.65919616]
[1767331540508,3.89184354,126.85,126.81,0.65919616]
[1767331540896,0.66441224,126.84,126.81,0.65919616]
[1767331545516,0.66441224,126.82,126.79,0.2]
[1767331545816,3.89184354,126.8,126.79,0.2]
[1767331546803,3.2274313,126.8,126.79,0.2]
[1767331547106,7.88473848,126.83,126.77,7.88820078]
[1767331547297,3.2274313,126.8,126.77,8.54739694]
[1767331548322,3.89184354,126.8,126.77,8.54739694]
[1767331548818,0.66441224,126.8,126.77,8.54739694]
[1767331549119,0.66441224,126.8,126.76,3.2274313]
[1767331549120,0.66441224,126.79,126.76,0.65919616]
[1767331549420,3.2274313,126.81,126.77,0.65919616]
[1767331549717,0.66441224,126.8,126.77,0.65919616]
[1767331551095,0.66441224,126.8,126.77,8.54747486]
[1767331555540,0.71354398,126.82,126.79,0.69252618]
[1767331556726,0.71354398,126.82,126.79,8.57957174]
[1767331557324,0.71354398,126.83,126.8,0.69252618]
[1767331557624,0.71354398,126.83,126.8,3.91995748]
[1767331557813,0.71354398,126.83,126.8,0.69252618]
[1767331563226,0.71354398,126.89,126.83,0.69252618]
[1767331563527,0.71354398,126.87,126.84,3.91995748]
[1767331565529,0.71354398,126.87,126.84,11.8038906]
[1767331567037,0.71354398,126.87,126.85,3.2274313]
[1767331567536,0.71354398,126.89,126.86,11.11004633]
[1767331567718,0.71354398,126.89,126.86,11.80257251]
[1767331569334,0.71354398,126.89,126.86,3.91995748]
[1767331569734,0.71354398,126.89,126.86,0.69252618]
[1767331570036,0.71354398,126.89,126.85,3.2274313]
[1767331570234,3.94097528,126.89,126.85,3.91995748]
[1767331570441,3.2274313,126.89,126.85,3.91995748]
[1767331570745,0.71354398,126.87,126.84,0.69252618]
[1767331570949,0.71354398,126.87,126.83,11.11175608]
[1767331571120,0.71354398,126.87,126.83,11.80428226]
[1767331572140,0.71354398,126.87,126.83,0.69252618]
[1767331572434,0.71354398,126.87,126.83,3.91995748]
[1767331572647,0.71354398,126.87,126.84,3.2274313]
[1767331572823,0.71354398,126.87,126.84,3.91995748]
[1767331575144,0.71354398,126.87,126.84,0.69252618]
[1767331575345,0.71354398,126.87,126.84,3.91995748]
[1767331576541,0.71354398,126.87,126.84,0.69252618]
[1767331576841,0.71354398,126.87,126.84,3.2274313]
[1767331578541,0.71354398,126.87,126.83,8.57698807]
[1767331578742,0.71354398,126.87,126.84,3.2274313]
[1767331579741,0.71354398,126.87,126.84,3.91995748]
[1767331590952,0.71354398,126.87,126.84,0.69252618]
[1767331591154,0.71354398,126.87,126.84,3.91995748]
[1767331591550,0.71354398,126.87,126.84,8.57639152]
[1767331591745,0.71354398,126.87,126.84,11.80382282]
[1767331592142,0.6749098,126.89,126.86,3.9429412]
[1767331592343,0.6749098,126.89,126.87,3.2274313]
[1767331592840,0.6749098,126.89,126.86,3.9429412]
[1767331594452,0.6749098,126.89,126.86,0.7155099]
[1767331594659,0.6749098,126.89,126.86,3.9429412]
[1767331598156,0.6749098,126.89,126.83,0.7155099]
[1767331598358,7.88089326,126.89,126.86,3.2274313]
[1767331598537,0.6749098,126.88,126.86,3.2274313]
[1767331600866,0.6749098,126.88,126.85,3.9429412]
[1767331601159,11.1092528,126.88,126.83,0.7155099]
[1767331601360,0.6749098,126.83,126.78,7.88739404]
[1767331601666,0.6749098,126.83,126.79,3.2274313]
[1767331601667,0.6749098,126.82,126.79,3.2274313]
[1767331601847,0.6749098,126.82,126.78,11.83033524]
[1767331602164,0.6749098,126.82,126.79,0.7155099]
[1767331602764,2.7412192,126.82,126.79,0.7155099]
[1767331603367,0.6749098,126.82,126.8,0.7155099]
[1767331604748,2.0663094,126.83,126.8,0.7155099]
[1767331604946,2.7412192,126.83,126.8,0.7155099]
[1767331609881,22.28295373,126.86,126.8,7.88633212]
[1767331610178,2.7412192,126.85,126.81,0.7155099]
[1767331611077,2.7412192,126.85,126.81,7.88572778]
[1767331611273,2.7412192,126.85,126.82,0.7155099]
[1767331613998,0.67894662,126.86,126.82,7.88509028]
[1767331614293,0.67894662,126.86,126.83,0.67289195]
[1767331615585,2.0663094,126.87,126.84,0.67289195]
[1767331615789,0.67894662,126.87,126.84,0.67289195]
[1767331618396,0.67894662,126.87,126.84,8.55678831]
[1767331619362,0.67894662,126.87,126.84,7.88389636]
[1767331619561,0.67894662,126.87,126.85,0.67289195]
[1767331622394,2.74525602,126.88,126.85,0.67289195]
[1767331623572,0.67894662,126.87,126.85,0.67289195]
[1767331624109,0.67894662,126.86,126.83,0.67289195]
[1767331625097,2.74525602,126.85,126.82,0.67289195]
[1767331625301,2.0663094,126.85,126.82,0.67289195]
[1767331625506,0.67894662,126.84,126.81,15.07289195]
[1767331626306,0.67894662,126.84,126.82,0.67289195]
[1767331633800,0.67894662,126.84,126.81,7.88579114]
[1767331634005,0.67894662,126.84,126.79,19.71660196]
[1767331634006,0.67894662,126.81,126.77,0.67289195]
[1767331634189,2.74525602,126.81,126.77,0.67289195]
[1767331634596,0.67894662,126.8,126.76,8.56153708]
[1767331634992,2.0663094,126.8,126.76,0.67289195]
[1767331635209,0.67894662,126.78,126.75,22.96215844]
[1767331635587,0.67894662,126.78,126.75,25.02846784]
[1767331635989,0.67894662,126.78,126.75,22.96215844]
[1767331636988,0.67894662,126.78,126.75,8.56215844]
[1767331640117,2.0663094,126.8,126.76,0.67289195]
[1767331640118,0.67894662,126.8,126.76,0.67289195]
[1767331640607,0.67894662,126.82,126.78,0.67289195]
[1767331641401,0.67894662,126.8,126.77,15.07289195]
[1767331642607,0.67894662,126.8,126.77,22.96111534]
[1767331652616,0.67894662,126.8,126.77,21.96111534]
[1767331655618,0.67894662,126.8,126.77,21.28822339]
[1767331655808,0.67894662,126.8,126.77,21.94671279]
[1767331657019,2.0663094,126.82,126.77,23.35453279]
[1767331657216,2.74967809,126.84,126.8,0.6584894]
[1767331657719,0.68336869,126.83,126.8,0.6584894]
[1767331663326,0.68336869,126.83,126.8,9.95261231]
[1767331663625,0.68336869,126.84,126.81,0.6584894]
[1767331665412,0.68336869,126.84,126.81,11.77184039]
[1767331667831,0.68336869,126.85,126.82,0.6584894]
[1767331670432,0.68336869,126.85,126.81,11.77184039]
[1767331674434,0.68336869,126.85,126.81,8.54422823]
[1767331674633,0.68336869,126.85,126.81,11.77184039]
[1767331674837,0.68336869,126.85,126.81,8.54422823]
[1767331675132,3.22761216,126.85,126.81,11.77184039]
[1767331675330,0.71385115,126.84,126.81,11.77184039]
[1767331680844,0.71385115,126.84,126.81,8.54422823]
[1767331681138,0.71385115,126.84,126.81,11.77184039]
[1767331685340,0.71385115,126.84,126.81,0.6584894]
[1767331685637,0.71385115,126.84,126.81,3.88610156]
[1767331689648,0.71385115,126.84,126.81,0.6584894]
[1767331689823,0.71385115,126.84,126.81,11.77189834]
[1767331694464,0.71385115,126.84,126.81,8.54428618]
[1767331694629,0.71385115,126.84,126.81,11.77189834]
[1767331695950,0.71385115,126.84,126.81,8.54428618]
[1767331696250,0.71385115,126.84,126.82,3.22761216]
[1767331701049,0.71385115,126.84,126.81,11.77189834]
[1767331706649,0.71155928,126.86,126.82,0.71994216]
[1767331706841,0.71155928,126.85,126.82,0.71994216]
[1767331710355,7.88350176,126.85,126.79,7.88663394]
[1767331710539,0.71155928,126.84,126.8,3.94755432]
[1767331711159,0.71155928,126.84,126.81,0.71994216]
[1767331713464,7.88427225,126.84,126.79,0.71994216]
[1767331713674,0.71155928,126.83,126.8,3.22761216]
[1767331714172,0.71155928,126.83,126.8,3.94755432]
[1767331715447,0.71155928,126.83,126.81,3.22761216]
[1767331717176,0.71155928,126.83,126.8,3.94755432]
[1767331718573,0.71155928,126.83,126.8,0.71994216]
[1767331719373,0.71155928,126.83,126.8,3.94755432]
[1767331721879,0.71155928,126.83,126.78,7.88739892]
[1767331722059,0.71155928,126.83,126.8,3.22761216]
[1767331722461,0.71155928,126.83,126.8,3.94755432]
[1767331724884,0.71155928,126.83,126.8,0.71994216]
[1767331725059,0.71155928,126.83,126.8,3.94755432]
[1767331726662,0.71155928,126.83,126.8,2.78573857]
[1767331726983,8.59612974,126.83,126.79,2.06579641]
[1767331727184,0.71155928,126.81,126.78,10.67341801]
[1767331727872,0.71155928,126.81,126.78,8.6076216]
[1767331728578,0.71155928,126.81,126.78,10.67341801]
[1767331731893,0.71155928,126.81,126.78,8.6076216]
[1767331734595,0.71155928,126.81,126.78,0.71994216]
[1767331738799,2.77735569,126.81,126.78,0.71994216]
[1767331739101,0.68228633,126.8,126.78,0.71994216]
[1767331739278,0.68228633,126.81,126.78,0.71994216]
[1767331741503,0.68228633,126.82,126.79,0.71356884]
[1767331746505,2.74808274,126.82,126.79,0.71356884]
[1767331748102,2.74808274,126.82,126.78,7.88733294]
[1767331748103,0.68228633,126.81,126.78,0.71356884]
[1767331757914,2.74808274,126.81,126.78,0.71356884]
[1767331760318,0.68228633,126.81,126.78,0.71356884]
[1767331762914,0.68228633,126.81,126.79,0.71356884]
[1767331766918,0.71138662,126.82,126.79,0.71356884]
[1767331768716,2.77718303,126.82,126.79,0.71356884]
[1767331772824,2.06579641,126.82,126.79,0.71356884]
[1767331773126,0.71138662,126.81,126.79,0.71356884]
[1767331773729,0.71138662,126.81,126.77,7.8880052]
[1767331773914,0.71138662,126.8,126.77,15.09300925]
[1767331775112,0.71138662,126.8,126.77,14.4]
[1767331775311,0.71138662,126.8,126.78,0.69300925]
[1767331776751,2.06579641,126.81,126.78,0.69300925]
[1767331776915,2.77718303,126.81,126.78,0.69300925]
[1767331777915,0.71138662,126.81,126.78,0.69300925]
[1767331798622,3.9405215,126.81,126.78,0.69300925]
[1767331799129,0.71451979,126.8,126.78,0.69300925]
[1767331802719,7.88548719,126.82,126.78,0.69300925]
[1767331802923,0.71451979,126.85,126.79,0.68331703]
[1767331803144,0.71451979,126.82,126.79,0.68331703]
[1767331804427,0.71451979,126.81,126.77,11.11712672]
[1767331804626,0.71451979,126.81,126.78,0.68331703]
[1767331804831,0.71451979,126.8,126.77,0.68331703]
[1767331809249,0.71451979,126.8,126.78,0.68331703]
[1767331812155,3.94365467,126.8,126.78,0.68331703]
[1767331812453,0.71451979,126.8,126.78,0.68331703]
[1767331815858,0.71451979,126.8,126.76,22.28869856]
[1767331815859,0.71451979,126.8,126.77,0.68331703]
[1767331816156,3.94365467,126.8,126.77,0.68331703]
[1767331818351,0.71451979,126.8,126.77,0.68331703]
[1767331818556,3.94365467,126.8,126.77,0.68331703]
[1767331818738,0.71451979,126.8,126.77,0.68331703]
[1767331818933,0.71451979,126.82,126.78,0.68331703]
[1767331819139,0.71451979,126.81,126.78,0.68331703]
[1767331821059,3.22913488,126.81,126.78,0.68331703]
[1767331821252,0.71451979,126.8,126.78,0.68331703]
[1767331821658,3.22913488,126.81,126.78,0.68331703]
[1767331821959,3.94365467,126.81,126.78,0.68331703]
[1767331825257,3.22913488,126.81,126.78,0.68331703]
[1767331825460,0.71790346,126.8,126.78,0.68331703]
[1767331825753,3.94703834,126.81,126.78,0.68331703]
[1767331826859,3.22913488,126.81,126.78,0.68331703]
[1767331827055,0.71790346,126.8,126.78,0.68331703]
[1767331829263,0.71790346,126.8,126.77,0.70781576]
[1767331831965,3.94703834,126.8,126.77,0.70781576]
[1767331835270,0.71790346,126.8,126.77,0.70781576]
[1767331839976,0.71790346,126.8,126.78,0.70781576]
[1767331842276,0.71790346,126.8,126.77,7.16316104]
[1767331842483,0.71790346,126.8,126.74,76.4]
[1767331842484,0.71790346,126.77,126.74,8.79763743]
[1767331844384,0.71790346,126.77,126.75,0.70781576]
[1767331844879,3.94703834,126.78,126.75,0.70781576]
[1767331845178,3.22913488,126.78,126.74,8.08982167]
[1767331845384,3.94703834,126.78,126.75,0.70781576]
[1767331845581,0.71790346,126.78,126.75,8.59731706]
[1767331845786,3.94703834,126.78,126.75,8.59731706]
[1767331846265,0.71790346,126.77,126.75,8.59731706]
[1767331846460,7.88661104,126.8,126.76,0.70781576]
[1767331846461,0.71790346,126.79,126.76,0.70781576]
[1767331848586,2.78522153,126.79,126.76,0.70781576]
[1767331851885,34.11244934,126.83,126.76,7.88874738]
[1767331852098,2.78522153,126.8,126.76,8.59656314]
[1767331852491,0.71790346,126.79,126.76,8.59656314]
[1767331856592,2.78522153,126.79,126.76,8.59656314]
[1767331862196,2.78522153,126.79,126.76,0.70781576]
[1767331862392,2.06731807,126.78,126.76,0.70781576]
[1767331862878,2.06731807,126.78,126.74,8.08985759]
[1767331862879,2.06731807,126.77,126.74,8.78086806]
[1767331863080,2.06731807,126.77,126.75,0.69101047]
[1767331863908,2.74105415,126.77,126.75,0.69101047]
[1767331864106,0.67373608,126.77,126.75,0.69101047]
[1767331864286,2.74105415,126.77,126.75,0.69101047]
[1767331865306,2.74105415,126.77,126.74,8.78086806]
[1767331867113,0.67373608,126.76,126.74,8.08985759]
[1767331867292,2.74105415,126.76,126.74,8.08985759]
[1767331867693,0.67373608,126.76,126.74,8.08985759]
[1767331867894,2.74105415,126.76,126.74,8.08985759]
[1767331868393,2.74105415,126.76,126.74,8.78086806]
[1767331869906,0.67373608,126.76,126.74,8.78086806]
[1767331878618,2.74105415,126.77,126.74,8.78086806]
[1767331881620,0.67373608,126.77,126.74,8.78086806]
[1767331881800,2.06731807,126.79,126.75,0.69101047]
[1767331882128,2.74105415,126.8,126.75,0.69101047]
[1767331883108,2.74105415,126.8,126.76,7.88892395]
[1767331883315,2.74105415,126.8,126.77,0.69101047]
[1767331885918,0.67373608,126.8,126.77,0.69101047]
[1767331886120,2.74105415,126.8,126.77,0.69101047]
[1767331887420,0.67373608,126.8,126.77,0.69101047]
[1767331887614,2.74105415,126.8,126.77,0.69101047]
[1767331893125,2.06731807,126.79,126.77,0.69101047]
[1767331893419,0.67373608,126.8,126.77,0.69101047]
[1767331893622,2.06731807,126.79,126.77,0.69101047]
[1767331898922,2.06731807,126.8,126.78,0.66481483]
[1767331902652,2.72070594,126.81,126.78,0.66481483]
[1767331903226,2.06731807,126.8,126.78,0.66481483]
[1767331906447,2.72070594,126.81,126.78,0.66481483]
[1767331908045,0.65338787,126.81,126.78,0.66481483]
[1767331908248,2.72070594,126.81,126.78,0.66481483]
[1767331910547,3.88275744,126.81,126.78,0.66481483]
[1767331913641,7.88485874,126.83,126.78,8.55218326]
[1767331913851,3.22936957,126.82,126.79,0.71587938]
[1767331914732,0.67895412,126.83,126.79,0.71587938]
[1767331914933,3.22936957,126.82,126.79,0.71587938]
[1767331916650,3.22936957,126.82,126.79,7.88690477]
[1767331916856,3.22936957,126.82,126.8,0.71587938]
[1767331921527,3.22936957,126.82,126.8,7.88638793]
[1767331921732,3.90832369,126.83,126.81,0.71587938]
[1767331922456,3.90832369,126.83,126.8,0.71587938]
[1767331922749,3.22936957,126.82,126.8,0.71587938]
[1767331926855,3.22936957,126.84,126.81,0.71587938]
[1767331929064,3.22936957,126.84,126.81,7.8855333]
[1767331929363,3.22936957,126.84,126.82,0.71587938]
[1767331929963,0.67895412,126.85,126.82,0.71587938]
[1767331930136,3.22936957,126.84,126.82,0.71587938]
[1767331931463,0.67895412,126.85,126.82,0.71587938]
[1767331931636,3.22936957,126.84,126.82,0.71587938]
[1767331933058,7.8823588,126.87,126.82,7.88489195]
[1767331933252,3.22936957,126.85,126.82,8.60077133]
[1767331933452,3.90832369,126.85,126.82,8.60077133]
[1767331937666,3.90832369,126.85,126.82,0.71587938]
[1767331937963,3.90832369,126.84,126.82,0.71587938]
[1767331940871,0.67895412,126.84,126.82,0.71587938]
[1767331941058,3.90832369,126.84,126.82,0.71587938]
[1767331946076,3.22936957,126.84,126.82,0.71587938]
[1767331946748,3.89352107,126.85,126.82,0.71587938]
[1767331947576,3.22936957,126.85,126.82,0.71587938]
[1767331947778,0.6641515,126.88,126.83,3.22936957]
[1767331947968,3.89352107,126.88,126.85,0.52145685]
[1767331948278,3.22936957,126.87,126.84,0.52145685]
[1767331950284,3.89352107,126.88,126.84,3.75082642]
[1767331951087,0.6641515,126.88,126.84,3.22936957]
[1767331951273,3.89352107,126.88,126.85,0.52145685]
[1767331953187,0.6641515,126.87,126.85,0.52145685]
[1767331957270,0.6641515,126.87,126.84,11.11329347]
[1767331957679,0.6641515,126.87,126.84,11.63475032]
[1767331957881,0.6641515,126.87,126.84,8.40538075]
[1767331958082,0.6641515,126.87,126.84,11.63475032]
[1767331960094,3.22936957,126.88,126.84,11.63475032]
[1767331960095,0.6641515,126.9,126.85,3.75082642]
[1767331960280,0.6641515,126.88,126.85,0.52145685]
[1767331960481,0.6641515,126.88,126.85,3.75082642]
[1767331960683,0.6641515,126.87,126.85,0.52145685]
[1767331961494,0.6641515,126.87,126.85,11.63407466]
[1767331965487,0.6641515,126.87,126.85,11.11261781]
[1767331967969,0.6641515,126.88,126.85,11.63407466]
[1767331969993,0.6641515,126.88,126.85,8.40470509]
[1767331970198,0.6641515,126.88,126.85,3.22936957]
[1767331970496,0.6641515,126.88,126.85,2.06419729]
[1767331973397,0.6641515,126.88,126.85,10.46843804]
[1767331979820,0.68500746,126.89,126.86,2.58565414]
[1767331981002,0.68500746,126.89,126.86,10.46829842]
[1767331987700,0.68500746,126.89,126.87,0.52145685]
[1767331989209,2.06419729,126.9,126.87,0.52145685]
[1767331989414,2.74920475,126.9,126.87,0.52145685]
[1767331989617,0.68500746,126.9,126.87,0.52145685]
[1767331989917,2.74920475,126.9,126.87,0.52145685]
[1767331990211,2.74920475,126.9,126.86,10.46829842]
[1767331990212,0.68500746,126.89,126.86,10.46829842]
[1767331993216,0.68500746,126.89,126.87,2.06419729]
[1767331993413,0.68500746,126.88,126.85,2.06419729]
[1767331993713,0.68500746,126.88,126.85,2.58565414]
[1767331998415,0.68500746,126.88,126.85,10.46888109]
[1767332011137,0.68500746,126.88,126.85,8.4046838]
[1767332011437,0.68500746,126.88,126.85,10.46888109]
[1767332012237,0.68500746,126.88,126.85,8.4046838]
[1767332014766,0.68500746,126.88,126.85,10.46888109]
[1767332018450,0.68500746,126.88,126.85,8.4046838]
[1767332018670,0.68500746,126.88,126.85,10.46888109]
[1767332022168,7.87959971,126.91,126.86,2.06419729]
[1767332022459,0.66354324,126.89,126.86,2.58565414]
[1767332023161,0.66354324,126.89,126.86,2.06419729]
[1767332025259,0.66354324,126.89,126.85,10.46888109]
[1767332028963,0.66354324,126.89,126.85,9.94742424]